{"text_format":"1","workbook":"xlsx","n_sheets":1,"sheets":["Blank Price Bid Sheet- WC"],"not_rendered":{"charts":0,"images":0,"macros":1,"external_links":0,"defined_names":1,"comments":0,"pivot_tables":0},"unopened":[],"bounds":{"document_bytes":16777216,"sheet_cells":100000,"rows_first":2000,"rows_last":500,"rows_between":2000,"halvings":0,"cell_chars":16384,"cell_head_chars":4096},"cells_cut":0,"cells_raw":0,"read":"whole","date_system":"1900"}

{"sheet":"Blank Price Bid Sheet- WC","index":0,"n_rows":30,"n_cols":14,"rows_kept":30,"cut":false,"hidden":false,"merged":[[0,0,0,12],[24,8,24,12],[26,1,26,12],[27,1,27,12],[2,0,2,12],[1,0,1,12],[18,6,21,6],[4,1,4,7],[3,1,3,7],[22,1,22,7]]}
["Price Bid Sheet"]
["Calibration of Reference Laboratory Standards used for calibration of dimensional instruments in Metrology lab of MTL, BHEL-Jhansi (Work Contract)"]
["Tender Enquiry No.: MTL/TW/21/06/006 "]
["Sl. \nNo.","Description of Work",null,null,null,null,null,null,"% Allocation (Item-wise)","Unit of Measurement","Quantum of Work","Rate per Unit (in Rs.)","Amount (in Rs.)"]
[" (A)","( B)",null,null,null,null,null,null,"( C)","(D)","(E)","(F)","(G=E*F)"]
[null,"Description","Make","Range","ID / Sl. No.","Details of accuracy/ standards for calibration","Max Required CMC at K = 2","Remarks",null,null,null,null,{"$f":"+($M$24*I6)","v":0}]
[1,"Angular Slip Gauge Set, \n(Total 15 pieces)","Tesa","0.05 Min to 90 Degree ","Sl. No.: 17334","Accuracy as per IS 6231 \n(for details of angle gauges in set please see the Table 1a)","20 arc seconds","All four angles of rectangular block are required to be calibrated ",7.1276000000000006E-2,"NO.",1,{"$f":" ROUNDDOWN( M7/K7,4)","v":0},{"$f":"+($M$24*I7)","v":0}]
[2,"Long Slip Gauge, Grade '0'","Mitutoyo","125 mm","Sl. No 894054,\nCode No.: SCM-334","Accuracy as per IS 2984 ","0.4 µm","Only for central height deviation",5.7869999999999996E-3,"NO.",1,0,{"$f":"+($M$24*I8)","v":0}]
[3,"Long Slip gauge, Grade '0'","Mitutoyo","150 mm","Sl No 900044,\nCode No.: SCM-335","Accuracy as per IS 2984","0.4 µm","Only for central height deviation",5.7869999999999996E-3,"NO.",1,0,{"$f":"+($M$24*I9)","v":0}]
[4,"Vernier Caliper Checker,\nModel-515-551","Mitutoyo","0 - 600 mm","Sl. No.: 010328","_","2.1 µm","At all points both for inside (from 20 to 600 mm) and outside (0 to 670 mm) measurement",5.1782000000000002E-2,"NO.",1,0,0]
[5,"Dial Calibration Tester,\nLC: 0.001 mm,\nMechanical Micrometer Type","Mikrotech","0 to 25 mm","Sl. No.: 240/84","_","1.1 µm","Minimum at 10 points",3.9598000000000001E-2,"NO.",1,0,0]
[6,"Inside Micrometer Checker,\nModel: 515-581","Mitutoyo","0 - 600 mm","Sl. No.: 610324","_","3.00 µm","Calibration is to be done at all points in steps of 25 mm",4.5690000000000001E-2,"NO.",1,0,{"$f":"+($M$24*I12)","v":0}]
[7,"Depth Micro-Checker, \nCode No: 515-571 ","Mitutoyo","0 - 300 mm","Sl. No.: 300263","_","3.0 µm","Calibration is to be done at all points and also of central height block",5.1782000000000002E-2,"NO.",1,0,{"$f":"+($M$24*I13)","v":0}]
[8,"Thread Measuring Wires Set\n(16 pairs - 32 nos. of wires)","Mitutoyo","0.17 mm to 6.35 mm","Code No.: SCM - 314","As per IS 6311","1.3 µm",null,0.10721899999999999,"NO.",1,0,{"$f":"+($M$24*I14)","v":0}]
[9,"Cylinder Setting Master (Set of 9 cylinders  in step of 10 mm)","Mitutoyo","10 to 90 mm","Code No.: SCM - 323","As per IS 4349","1.3 µm",null,4.6604E-2,"NO.",1,0,0]
[10,"Universal Length Measuring Machine, \nModel-828 N, LC=0.0005 mm \n(Null Indicator LC=0.001 mm (Drum)","Mahr Germany ","Machine Range: \n0 to 100 mm, \nRange of Drum: \n0 to 10 mm having Resoluion 0.001 mm","Sl. No.: 48490","_","1.30 µm","For onsite calibration*",0.15229999999999999,"NO.",1,0,0]
[11,"Floating Carriage Micrometer,\nLC: 0.002 mm\n(Null indicator LC: 0.001 mm).\nModel FCM - 2 Series 163","Mitutoyo","Total Range: \n150 mm,\nDrum Range: \n0 to 10 mm","Sl. No.: 901008","_","3.0 µm","For onsite calibration*",8.5288000000000003E-2,"NO.",1,0,0]
[12,"Master Cylinder","Supreme Gauges, Pune","150 (Ø) x 500 mm","Sl. No.: 1088","_","1.3 µm","For onsite calibration* / At your laboratory",3.2897000000000003E-2,"NO.",1,0,0]
[13,"Granite Surface Plate;  \nGrade 0","Guindy Machine Tools","1000 mm X 1000 mm","073-001","As per IS 7327","1.3{(L+W)/100)}½ Where L and B are in mm","For onsite calibration* ",3.6552000000000001E-2,"NO.",1,0,0]
[14,"Cast Iron Surface Plate ","Guindy Machine Tools","1000 mm X 1000 mm","072-004","As per IS 2285",null,"For onsite calibration*",3.6552000000000001E-2,"NO.",1,0,0]
[15,"Cast Iron Surface Plate ","Guindy Machine Tools","400 mm X 400 mm","072-002","As per IS 2285",null,"For onsite calibration*",1.7971000000000001E-2,"NO.",1,0,0]
[16,"Cast Iron Surface Plate ","Guindy Machine Tools","400 mm X 400 mm","072-001","As per IS 2285",null,"For onsite calibration*",1.7971000000000001E-2,null,null,null,0]
[17,"Additional Site calibration charges for item Sl No 10 to 16 (inclusive all taxes)\n",null,null,null,null,null,null,0.19494400000000001,"NO.",1,0,0]
[null,"GROSS TOTAL ",null,null,null,null,null,null,{"$f":"SUM(I7:I23)","v":1},null,null,null,null,"To be quoted by bidder"]
[null,"Total price in words:",null,null,null,null,null,null,{"$f":"+RUP(M24)","v":0}]
["Note:"]
[null,"1. Bidder has to quote in above unlocked cell only. Item rate shall be calculated automatically. Calculated item rates upto four decimal points may be adjusted w.r.t. gross total amount and it shall be the itemwise final rate for  execution of contract and all other purposes."]
[null,"2. Quoted gross total amount should be considered only if quoted in this excel sheet and print out of this should only be considered for evaluation.  If Price is quoted in any other format other than the Excel Sheet enclosed to the NIT , the offer of the bidder  will be rejected"]
[]
[null,null,null,null,null,null,null,null,"(Signature and Seal of  Contractor  )"]